bitfinex/quotes_ETHUSD_20240816
["timestamp","ask_amount","ask_price","bid_price","bid_amount"]
[1723767667415,3.87609,2580.0,2579.3,3.87691]
[1723767667604,0.08069334,2579.9,2579.2,6.30047]
[1723767667811,3.87626,2579.9,2579.2,6.30047]
[1723767668149,0.08073758,2579.8,2579.2,6.30047]
[1723767668343,0.08073758,2579.8,2579.2,6.30038]
[1723767668486,0.08073758,2579.8,2579.4,3.87681]
[1723767668829,0.08070536,2579.7,2579.6,3.87657]
[1723767669238,3.87538,2580.4,2579.7,3.87635]
[1723767669539,3.87538,2580.4,2579.7,6.31135]
[1723767669749,0.08116484,2580.3,2579.8,3.87619]
[1723767669910,0.08116484,2580.3,2579.7,2.99812698]
[1723767670112,3.87498,2580.7,2580.0,3.87587]
[1723767670606,0.0814463,2580.6,2580.0,3.87587]
[1723767671593,0.0814463,2580.6,2579.9,35.0]
[1723767671902,3.8755,2580.4,2579.9,35.0]
[1723767672241,4.323,2580.1,2579.0,2.3516]
[1723767672407,3.87652,2579.7,2579.0,2.3516]
[1723767672738,0.080943,2579.6,2579.1,35.0]
[1723767672906,0.080943,2579.6,2579.1,38.87722]
[1723767673113,7.75245,2579.9,2579.1,38.87722]
[1723767673114,3.8762,2579.9,2579.1,38.87722]
[1723767673328,0.08102714,2579.5,2579.1,35.0]
[1723767673527,6.3126,2579.7,2579.1,35.0]
[1723767673693,0.08078461,2579.4,2579.1,38.87727]
[1723767673892,3.87626,2579.8,2579.1,39.44035698]
[1723767674118,0.08081848,2579.3,2579.1,43.31757698]
[1723767674336,3.87626,2579.8,2579.1,39.44034698]
[1723767674509,0.08078512,2579.2,2579.1,39.44034698]
[1723767674693,3.87646,2579.7,2579.1,38.87722]
[1723767674895,7.75298,2579.7,2579.1,35.0]
[1723767675137,0.08083752,2579.6,2579.1,35.0]
[1723767675341,0.08083752,2579.6,2579.1,38.87721]
[1723767675637,3.87618,2579.9,2579.1,39.44033698]
[1723767675794,0.08088582,2579.5,2579.1,39.44033698]
[1723767676305,3.87589,2580.1,2579.5,3.8767]
[1723767676506,3.87589,2580.1,2579.3,3.87689]
[1723767676507,0.26793086,2580.0,2579.3,3.87689]
[1723767676709,3.87657,2579.6,2579.0,6.22905]
[1723767676910,3.8763,2579.8,2579.2,3.87708]
[1723767677592,4.263629,2580.0,2579.3,3.87701]
[1723767677793,4.263629,2580.0,2579.5,3.8767]
[1723767677794,0.387589,2580.0,2579.5,3.8767]
[1723767678098,3.8757,2580.2,2579.5,3.8767]
[1723767678319,4.14376395,2580.1,2579.5,3.8767]
[1723767678519,0.26793395,2580.0,2579.5,3.8767]
[1723767678874,0.26793395,2580.0,2579.6,35.0]
[1723767679220,0.34886977,2579.9,2579.6,35.0]
[1723767679437,0.50341374,2579.9,2579.6,35.0]
[1723767679720,4.37955374,2579.9,2579.6,35.0]
[1723767680617,3.87631,2579.8,2579.6,35.0]
[1723767680856,0.08089759,2579.7,2579.6,35.0]
[1723767681231,3.87631,2579.8,2579.6,35.0]
[1723767681425,0.08089873,2579.7,2579.6,35.0]
[1723767681663,3.87631,2579.8,2579.6,35.0]
[1723767681867,0.42248498,2579.9,2578.7,6.29189]
[1723767681868,3.87696,2579.4,2578.7,6.29189]
[1723767682163,3.87696,2579.4,2578.8,3.87775]
[1723767682359,0.08055114,2579.3,2578.9,35.0]
[1723767683570,0.08055114,2579.3,2578.9,35.49812698]
[1723767683776,0.08055114,2579.3,2579.1,3.87717]
[1723767684087,3.87633,2579.8,2579.1,6.29127]
[1723767684223,7.75269,2579.8,2579.1,6.29127]
[1723767684424,0.08064743,2579.7,2579.2,35.0]
[1723767686840,3.95714743,2579.7,2579.2,35.0]
[1723767687218,3.87702,2579.3,2579.2,35.0]
[1723767687422,4.22540955,2579.3,2579.2,35.0]
[1723767689240,0.34838955,2579.3,2579.2,35.0]
[1723767689599,0.0804662,2579.3,2579.2,35.0]
[1723767689879,0.26790638,2579.3,2579.2,35.0]
[1723767690245,0.34831105,2579.3,2579.2,35.0]
[1723767691070,0.08040467,2579.3,2579.2,37.4765]
[1723767691271,0.08040467,2579.3,2579.2,41.35367]
[1723767691547,3.87635,2579.8,2579.2,37.4765]
[1723767691741,0.2679394,2579.7,2579.2,41.35364]
[1723767691945,0.34840239,2579.7,2579.2,37.4765]
[1723767692168,0.2679394,2579.6,2579.2,37.4765]
[1723767692584,0.08040487,2579.5,2579.2,41.35366]
[1723767692887,0.08040487,2579.5,2579.4,3.87687]
[1723767693097,0.08040487,2579.5,2579.4,7.75374]
[1723767693326,3.87574,2580.2,2579.5,3.87663]
[1723767693529,0.2679568,2580.1,2579.6,2.4992]
[1723767693672,0.07813791,2580.1,2580.0,3.87596]
[1723767693877,0.07813791,2580.1,2580.0,10.25112]
[1723767694071,2.4769,2580.7,2580.0,10.25112]
[1723767694072,7.59252354,2580.9,2580.2,3.87558]
[1723767694275,0.26799038,2580.8,2580.2,3.87558]
[1723767694476,0.26799038,2580.7,2580.2,3.87557]
[1723767694683,0.26799038,2580.6,2580.2,3.87557]
[1723767695123,0.07578504,2580.5,2580.0,45.25091]
[1723767695283,0.34376845,2580.5,2580.1,3.87577]
[1723767695478,3.87488,2580.8,2580.1,3.87577]
[1723767695684,0.26798538,2580.7,2580.2,3.87565]
[1723767695908,3.87552,2580.3,2580.0,35.0]
[1723767696119,3.8762,2579.9,2579.4,0.81105217]
[1723767696320,3.8759,2580.1,2579.4,3.87685]
[1723767696509,0.07581717,2579.8,2579.4,3.87675]
[1723767696703,3.8759,2580.1,2579.5,35.0]
[1723767697020,0.26796511,2580.0,2579.5,35.0]
[1723767697226,0.07584419,2579.9,2579.6,3.87648]
[1723767697430,0.07584419,2579.9,2579.7,2.4753]
[1723767697727,3.7179316,2580.6,2579.9,3.87605]
[1723767697728,3.8751,2580.6,2579.9,3.87605]
[1723767697923,0.26795859,2580.5,2580.0,38.87595]
[1723767698125,0.26795859,2580.4,2580.1,3.87573]
[1723767698313,3.87499,2580.7,2580.1,6.15983]
[1723767698627,0.26796571,2580.6,2580.1,2.2841]
[1723767698824,3.87499,2580.7,2580.0,35.0]
[1723767698825,4.14323571,2580.5,2580.0,35.0]
[1723767698996,0.26796571,2580.4,2580.0,35.0]
[1723767700418,0.26796571,2580.3,2580.0,35.0]
[1723767700768,0.26796571,2580.2,2580.0,35.0]
[1723767701834,0.26793432,2580.1,2580.0,35.0]
[1723767702186,0.26793432,2580.2,2580.0,35.0]
[1723767702417,3.87562,2580.3,2580.0,35.0]
[1723767702418,0.26793432,2580.1,2580.0,35.0]
[1723767702612,3.87529,2580.5,2580.0,35.0]
[1723767702613,11.31496,2580.7,2580.0,35.0]
[1723767702829,0.26779171,2580.6,2580.1,3.87572]
[1723767703004,0.26779171,2580.6,2580.0,41.15607]
[1723767704115,0.26779171,2580.6,2580.0,45.03195]
[1723767704414,0.26779171,2580.6,2580.0,41.15607]
[1723767705154,0.26779171,2580.6,2580.0,41.15608]
[1723767705617,0.26779171,2580.6,2580.0,37.2802]
[1723767705819,3.87522,2580.5,2580.0,37.2802]
[1723767706006,0.26776601,2580.4,2580.0,41.15614]
[1723767706205,11.31492,2580.7,2580.0,41.15614]
[1723767706427,0.26774254,2580.6,2580.0,41.15614]
[1723767706628,0.26774254,2580.6,2580.0,41.15608]
[1723767707620,0.26774254,2580.6,2580.0,45.03196]
[1723767707954,3.87559,2580.3,2579.5,2.498]
[1723767708295,3.87592,2580.1,2579.5,2.498]
[1723767708547,0.26774254,2580.0,2579.6,35.0]
[1723767708910,3.87546,2580.4,2579.8,3.87626]
[1723767709248,3.87546,2580.4,2579.5,2.498]
[1723767709249,3.87606,2580.0,2579.5,2.498]
[1723767709406,3.8763,2579.8,2579.2,3.87702]
[1723767709609,0.34336358,2579.7,2579.3,35.0]
[1723767709904,0.34336358,2579.7,2579.4,3.87678]
[1723767709905,0.07558321,2579.7,2579.4,3.87678]
[1723767710110,0.07558321,2579.7,2579.5,3.87668]
[1723767710416,0.07559466,2579.6,2579.5,3.87668]
[1723767710621,11.34511632,2580.2,2579.5,3.87668]
[1723767710830,0.76918819,2580.1,2579.6,6.14044]
[1723767711168,0.26778788,2580.0,2579.7,35.0]
[1723767711503,0.07578656,2579.9,2579.7,35.0]
[1723767712120,3.87583,2580.1,2579.7,35.0]
[1723767712310,0.07575549,2579.8,2579.7,35.0]
[1723767712511,3.87578,2580.2,2579.7,35.0]
[1723767712714,0.07576409,2579.8,2579.7,35.0]
[1723767712945,3.87578,2580.2,2579.7,37.2656]
[1723767713211,0.26775794,2580.1,2579.7,37.2656]
[1723767713432,0.07581961,2580.0,2579.7,35.0]
[1723767713665,0.26775794,2579.9,2579.7,35.0]
[1723767713839,0.07575293,2579.8,2579.7,35.0]
[1723767714249,3.87576,2580.2,2579.7,35.0]
[1723767714443,0.34361018,2580.1,2579.7,35.0]
[1723767714649,0.26777266,2580.0,2579.7,35.0]
[1723767714865,0.07577825,2579.9,2579.7,35.0]
[1723767715472,3.87576,2580.2,2579.7,35.0]
[1723767715686,0.07576211,2579.8,2579.7,35.0]
[1723767715899,3.87537,2580.4,2579.8,2.2906]
[1723767716063,0.07576211,2579.8,2579.7,35.0]
[1723767716265,3.876,2580.0,2579.7,35.0]
[1723767716463,0.34354649,2579.9,2579.7,35.0]
[1723767716699,0.26772228,2579.8,2579.7,35.0]
[1723767717109,0.34351763,2579.8,2579.7,38.87641]
[1723767717263,0.07579535,2579.8,2579.7,38.87641]
[1723767717461,3.87531,2580.5,2579.8,3.87621]
[1723767717671,10.28115197,2580.7,2580.0,3.87592]
[1723767717672,0.76935965,2580.4,2580.0,3.87592]
[1723767717917,0.26766843,2580.3,2580.1,2.4266]
[1723767718209,7.58899338,2580.9,2580.1,6.3023]
[1723767718210,0.07602094,2580.2,2580.1,6.3023]
[1723767718426,3.87487,2580.8,2580.1,6.3023]
[1723767718576,0.34389649,2580.7,2580.2,3.87565]
[1723767718786,0.26766313,2580.6,2580.2,3.87565]
[1723767719112,0.07615812,2580.5,2580.2,3.87565]
[1723767719397,0.34382125,2580.5,2580.2,3.87565]
[1723767719599,0.26766313,2580.4,2580.2,3.87565]
[1723767719797,0.07610273,2580.3,2580.2,3.87565]
[1723767720315,3.87487,2580.8,2580.2,3.87565]
[1723767720514,0.26767544,2580.7,2580.3,3.87543]
[1723767720667,0.26767544,2580.7,2580.2,3.87565]
[1723767720668,0.26767544,2580.6,2580.2,3.87565]
[1723767720867,0.26767544,2580.5,2580.2,3.87565]
[1723767721066,0.0760494,2580.4,2580.3,3.87551]
[1723767721269,3.87449,2581.0,2580.3,3.87551]
[1723767721270,0.26771016,2580.9,2580.3,3.87551]
[1723767721462,0.76949442,2580.8,2580.3,3.87551]
[1723767721808,0.26771016,2580.7,2580.5,6.1497]
[1723767722011,0.34396883,2580.6,2580.5,6.22719671]
[1723767722223,0.07625867,2580.6,2580.5,10.02491]
[1723767722507,0.1250957,2581.2,2580.8,3.87467]
[1723767722707,3.87446,2581.0,2580.9,35.0]
[1723767722918,8.83080952,2581.0,2580.9,35.0]
[1723767723068,1.08188952,2581.0,2580.9,35.0]
[1723767723267,0.26773359,2581.0,2580.9,35.0]
[1723767724312,0.34428399,2581.0,2580.9,35.0]
[1723767724471,0.0765504,2581.0,2580.9,35.0]
[1723767724671,0.1250957,2581.2,2580.9,38.87461]
[1723767724868,0.34429555,2581.1,2581.0,3.87446]
[1723767725093,0.1250957,2581.2,2581.0,3.87446]
[1723767725402,0.1250957,2581.2,2581.1,3.87431]
[1723767725765,0.1250957,2581.2,2581.0,3.87446]
[1723767726165,0.07659481,2581.1,2581.0,3.87446]
[1723767726366,0.1250957,2581.2,2581.0,3.87446]
[1723767726617,0.1250957,2581.2,2581.1,6.19831]
[1723767726967,0.1250957,2581.2,2581.1,10.07262]
[1723767729703,0.1250957,2581.2,2581.1,6.19831]
[1723767730206,0.1250957,2581.2,2580.9,3.87448]
[1723767730510,0.07704927,2581.1,2581.0,3.87437]
[1723767731415,0.07704927,2581.1,2581.0,10.07783]
[1723767731799,0.1250957,2581.2,2581.0,10.07783]
[1723767731800,0.1250957,2581.2,2581.1,3.87431]
[1723767732671,0.1250957,2581.2,2581.0,6.20337]
[1723767732879,0.1250957,2581.2,2581.0,6.20343]
[1723767733811,0.1250957,2581.2,2580.8,6.19384]
[1723767734106,0.1250957,2581.2,2580.3,5.61283191]
[1723767734107,3.87471,2580.9,2580.2,6.19473]
[1723767734294,0.07653429,2581.1,2580.4,3.87528]
[1723767734295,3.59124478,2581.0,2580.4,3.87528]
[1723767734470,0.07646163,2580.8,2580.5,3.87519]
[1723767734667,3.87449,2581.0,2580.4,3.87528]
[1723767734883,0.07636102,2580.9,2580.4,3.87528]
[1723767735715,3.87478,2580.8,2580.2,10.07035]
[1723767735917,3.87478,2580.8,2580.2,6.19477]
[1723767736088,0.07651031,2580.7,2580.2,6.19477]
[1723767736912,3.87478,2580.8,2580.2,6.19477]
[1723767737102,0.07646216,2580.6,2580.2,6.19477]
[1723767737298,0.07649301,2580.7,2580.2,2.3192]
[1723767737527,0.07642636,2580.5,2580.0,3.87589]
[1723767737730,3.8753,2580.5,2579.9,2.2593]
[1723767738028,0.07631121,2580.4,2579.8,3.87618]
[1723767739715,0.07631121,2580.4,2579.8,3.87617]
[1723767740252,0.07631121,2580.4,2579.6,2.3094]
[1723767740253,0.07631121,2580.4,2580.3,10.23222]
[1723767740541,0.1250957,2581.2,2580.6,3.87492]
[1723767740744,0.1250957,2581.2,2580.6,7.74989]
[1723767741044,0.07656773,2581.1,2580.9,3.87458]
[1723767741185,0.07656773,2581.1,2581.0,3.87446]
[1723767741618,0.1250957,2581.2,2581.0,3.87446]
[1723767743243,0.1250957,2581.2,2581.1,7.74862]
[1723767746082,0.1250957,2581.2,2581.1,3.87431]
[1723767746194,0.1250957,2581.2,2580.9,3.87455]
[1723767746939,3.9993757,2581.2,2580.5,6.36462]
[1723767747236,0.26808884,2581.1,2580.7,3.87488]
[1723767748033,0.1250957,2581.2,2580.7,3.87488]
[1723767748333,0.1250957,2581.2,2580.8,3.87467]
[1723767748628,0.1250957,2581.2,2581.0,3.87445]
[1723767748855,0.1250957,2581.2,2581.1,2.3194]
[1723767749006,0.1250957,2581.2,2581.0,3.87445]
[1723767749204,0.1250957,2581.2,2581.0,3.87437]
[1723767749531,0.1250957,2581.2,2580.8,3.87468]
[1723767750102,0.1250957,2581.2,2580.8,7.74936]
[1723767750308,0.1250957,2581.2,2580.8,7.74932]
[1723767750522,0.1250957,2581.2,2580.8,3.87463]
[1723767750697,0.1250957,2581.2,2581.0,3.87445]
[1723767751490,0.1250957,2581.2,2580.8,3.87463]
[1723767751916,0.26815041,2581.1,2580.8,3.87463]
[1723767752434,0.26815041,2581.1,2580.6,3.87493]
[1723767752634,0.26815041,2581.1,2580.2,3.87553]
[1723767752635,3.87474,2580.9,2580.2,3.87553]
[1723767752835,2.3651,2581.1,2580.4,3.87525]
[1723767752836,6.23949,2581.1,2580.4,3.87525]
[1723767753142,0.26817441,2581.0,2580.4,7.75053]
[1723767753434,0.26817441,2581.0,2580.4,3.87527]
[1723767753848,0.26817441,2581.0,2580.6,3.87505]
[1723767754153,0.26817441,2581.0,2580.6,3.87499]
[1723767754348,0.07130839,2580.9,2580.6,3.87499]
[1723767754713,7.5650957,2581.2,2580.4,3.87525]
[1723767754910,0.07125528,2580.8,2580.4,7.75053]
[1723767755138,9.13908857,2581.1,2580.4,3.87525]
[1723767755452,0.26814375,2581.0,2580.5,3.87509]
[1723767755626,0.07128862,2580.9,2580.4,3.87525]
[1723767755830,0.07128862,2580.9,2580.4,7.75053]
[1723767756057,3.87442,2581.1,2580.4,7.75053]
[1723767756058,3.87442,2581.1,2580.5,3.87511]
[1723767756258,0.33938163,2581.0,2580.5,3.87511]
[1723767756565,0.26815596,2580.9,2580.5,3.87511]
[1723767756915,0.07113922,2580.8,2580.5,3.87511]
[1723767757542,0.1250957,2581.2,2580.6,3.87506]
[1723767757745,0.07110588,2580.7,2580.6,3.87506]
[1723767758054,0.07130734,2580.7,2580.6,3.87506]
[1723767758216,4.59698332,2581.2,2580.6,3.87506]
[1723767758415,0.33976294,2581.1,2580.6,3.87506]
[1723767758650,0.26835211,2581.0,2580.6,3.87506]
[1723767758854,0.33970249,2580.9,2580.6,3.87506]
[1723767759058,0.07134417,2580.9,2580.6,3.87506]
[1723767759374,4.59698332,2581.2,2580.6,3.87506]
[1723767759516,0.07131084,2580.8,2580.6,3.87506]
[1723767759724,4.59698332,2581.2,2580.6,3.87506]
[1723767760021,0.26837612,2581.1,2580.6,3.87506]
[1723767760338,4.59698332,2581.2,2580.6,3.87506]
[1723767760339,0.33781109,2581.0,2580.6,3.87506]
[1723767760549,0.33781109,2581.0,2580.4,3.87527]
[1723767760550,0.26837612,2580.9,2580.4,3.87522]
[1723767760860,2.70866477,2580.8,2580.2,3.87558]
[1723767761066,2.70866477,2580.8,2580.2,7.75116]
[1723767761067,0.26837612,2580.7,2580.2,7.75116]
[1723767761296,0.06921949,2580.6,2580.3,3.87541]
[1723767761897,2.371,2580.8,2580.3,3.87541]
[1723767762100,0.33769439,2580.7,2580.3,3.87541]
[1723767762264,0.06928267,2580.7,2580.3,3.87541]
[1723767762597,0.26840936,2580.6,2580.3,3.87541]
[1723767762795,0.06924933,2580.6,2580.3,3.87541]
[1723767762994,0.06924933,2580.6,2580.2,3.87556]
[1723767763148,3.87472,2580.9,2580.2,7.75111]
[1723767763353,0.26841387,2580.8,2580.3,3.87548]
[1723767763586,0.26841387,2580.7,2580.3,3.87548]
[1723767763802,0.2674233,2580.7,2580.3,3.87548]
[1723767763979,0.06922957,2580.6,2580.3,3.87548]
[1723767764507,3.87461,2581.0,2580.3,3.87548]
[1723767764658,0.49597967,2580.9,2580.3,3.87548]
[1723767764856,0.06932959,2580.9,2580.3,3.87548]
[1723767765313,0.42658033,2580.8,2580.3,3.87548]
[1723767765523,0.06932959,2580.9,2580.3,3.87548]
[1723767765663,0.06926291,2580.7,2580.2,3.87555]
[1723767765971,4.30172294,2580.6,2580.0,3.87595]
[1723767766173,0.42653294,2580.5,2580.0,3.87595]
[1723767766368,0.06921464,2580.6,2580.0,3.87595]
[1723767766597,0.06908112,2580.4,2580.0,3.87595]
[1723767766761,0.06911447,2580.5,2580.0,3.87595]
[1723767766962,0.06904777,2580.3,2580.0,3.87595]
[1723767767198,0.0691408,2580.4,2580.0,3.87595]
[1723767767399,0.0690741,2580.2,2580.0,3.87595]
[1723767767706,1.41372699,2580.7,2579.6,6.29532237]
[1723767767707,0.06904075,2580.1,2579.6,3.19495217]
[1723767767920,6.24228,2580.3,2579.6,10.13681]
[1723767768071,0.06886852,2580.0,2579.6,6.26034]
[1723767768268,3.72214013,2580.6,2580.4,3.87527]
[1723767768493,9.96258013,2581.5,2580.9,3.87447]
[1723767768721,9.96258013,2581.5,2580.5,1.91156654]
[1723767768722,2.3667,2581.5,2580.5,7.8717795]
[1723767768931,3.87432,2581.1,2580.6,1.34704036]
[1723767769136,3.9992657,2581.2,2580.6,1.34704036]
[1723767769395,0.05749982,2581.0,2580.6,1.94196396]
[1723767769638,6.30188,2581.0,2580.6,0.5949236]
[1723767769807,0.05752617,2580.9,2580.6,4.4698336]
[1723767770016,0.05752617,2580.9,2580.5,3.87519]
[1723767770345,2.4797,2581.1,2580.6,3.87506]
[1723767770542,0.05751228,2580.8,2580.6,3.87506]
[1723767770845,0.1250957,2581.2,2580.6,6.12646]
[1723767771051,0.05753331,2580.7,2580.6,10.00152]
[1723767771215,0.1250957,2581.2,2580.9,3.87457]
[1723767771412,0.1250957,2581.2,2581.1,3.87431]
[1723767771802,0.1250957,2581.2,2581.1,45.00002]
[1723767773449,0.1250957,2581.2,2581.1,38.87431]
[1723767773913,0.1250957,2581.2,2581.1,35.0]
[1723767775837,0.39341079,2581.2,2581.1,35.0]
[1723767776288,4.26757079,2581.2,2581.1,35.0]
[1723767776662,9.18563387,2581.2,2581.1,35.0]
[1723767776857,9.18563387,2581.2,2580.5,3.87513]
[1723767776858,3.87447,2581.0,2580.3,5.28136987]
[1723767777061,3.87447,2581.0,2580.3,6.49101341]
[1723767777062,0.26831509,2580.9,2580.3,6.49101341]
[1723767777360,0.26831509,2580.8,2580.4,35.0]
[1723767777683,0.26831509,2580.7,2580.4,35.0]
[1723767777889,0.05761656,2580.6,2580.4,35.0]
[1723767778288,2.28,2580.9,2580.4,39.4702736]
[1723767778590,0.32598038,2580.8,2580.5,0.5949236]
[1723767778753,0.26838382,2580.7,2580.5,0.5949236]
[1723767779089,0.05752987,2580.6,2580.5,0.5949236]
[1723767779285,0.05752987,2580.6,2580.5,35.5949236]
[1723767779486,3.87447,2581.0,2580.5,35.5949236]
[1723767779674,0.32601251,2580.9,2580.6,3.87498]
[1723767779993,0.26838262,2580.8,2580.6,3.87498]
[1723767780196,0.05762989,2580.9,2580.6,3.87498]
[1723767780400,13.9297257,2581.2,2580.7,35.0]
[1723767780603,0.26835774,2581.1,2581.0,3.87446]
[1723767781199,0.26835774,2581.1,2581.0,35.0]
[1723767781765,0.26835774,2581.1,2581.0,38.87446]
[1723767781997,0.1250957,2581.2,2581.1,3.87431]
[1723767782200,0.1250957,2581.2,2581.0,35.0]
[1723767782513,0.1250957,2581.2,2581.0,38.87442]
[1723767783271,0.1250957,2581.2,2581.1,3.87431]
[1723767783521,0.1250957,2581.2,2581.1,4.4692336]
[1723767783973,0.39338435,2581.2,2581.1,4.4692336]
[1723767784173,0.39338435,2581.2,2581.0,35.56439298]
[1723767784379,0.26830941,2581.1,2581.0,38.87446]
[1723767784618,0.1250957,2581.2,2581.0,38.87446]
[1723767784810,0.05793721,2581.1,2581.0,38.87446]
[1723767785122,0.1250957,2581.2,2581.0,38.87446]
[1723767785279,0.1250957,2581.2,2581.1,3.87431]
[1723767785473,0.18302148,2581.2,2581.0,38.87443]
[1723767785772,0.18302148,2581.2,2581.0,35.0]
[1723767785972,0.18302148,2581.2,2581.0,38.87446]
[1723767786479,0.1250957,2581.2,2581.1,7.80595473]
[1723767786728,0.1250957,2581.2,2581.1,11.17297725]
[1723767786907,0.1250957,2581.2,2581.1,11.17299996]
[1723767787521,0.1250957,2581.2,2581.1,11.98404623]
[1723767787728,0.1250957,2581.2,2581.1,11.17299996]
[1723767788089,0.1250957,2581.2,2581.1,11.98404623]
[1723767788405,0.00316753,2581.2,2581.1,11.17299996]
[1723767788987,0.00316753,2581.2,2581.1,11.98404623]
[1723767789385,0.00316753,2581.2,2581.1,11.9267115]
[1723767789586,0.00316753,2581.2,2581.1,11.11566523]
[1723767790009,0.00316753,2581.2,2581.1,46.11566523]
[1723767790688,0.00316753,2581.2,2581.1,46.11548836]
[1723767791794,0.00316753,2581.2,2581.1,36.34674734]
[1723767791990,0.00316753,2581.2,2581.1,35.0]
[1723767793789,0.06124375,2581.2,2581.1,35.0]
[1723767793994,0.00316753,2581.2,2581.1,35.0]
[1723767794451,2.3546,2581.1,2580.5,0.81104627]
[1723767794655,2.3546,2581.1,2580.0,6.30548]
[1723767794656,3.87492,2580.7,2580.3,2.83179641]
[1723767794858,0.26781909,2580.6,2580.1,6.70760641]
[1723767795080,0.32580265,2580.6,2580.4,35.0]
[1723767795235,0.05798356,2580.6,2580.4,35.0]
[1723767795861,2.4611,2580.5,2580.4,35.0]
[1723767796068,2.72894022,2580.5,2580.4,35.0]
[1723767796376,2.78665234,2580.5,2580.4,35.0]
[1723767797175,10.53707234,2580.5,2580.4,35.0]
[1723767797485,3.87561,2580.3,2579.7,0.81104627]
[1723767797626,3.87561,2580.3,2579.8,1.34748479]
[1723767797834,0.05743831,2580.2,2580.1,3.87581]
[1723767798033,0.05743831,2580.2,2579.9,6.33926]
[1723767798272,3.87522,2580.5,2580.0,3.87596]
[1723767798581,0.26786588,2580.4,2580.0,3.87596]
[1723767798788,0.32546287,2580.4,2580.0,3.87596]
[1723767799090,0.26786588,2580.3,2580.1,35.0]
[1723767799734,0.05751904,2580.2,2580.1,35.0]
[1723767800281,3.87497,2580.7,2580.1,38.8758]
[1723767800445,3.87497,2580.7,2580.1,35.0]
[1723767800446,0.26785386,2580.6,2580.1,35.0]
[1723767800988,0.26785386,2580.6,2580.1,38.87573]
[1723767801181,0.26785386,2580.6,2580.1,35.0]
[1723767801884,6.45055386,2580.6,2580.1,35.0]
[1723767802037,0.26785386,2580.5,2580.1,35.0]
[1723767802242,6.1827,2580.6,2580.1,35.0]
[1723767802482,3.87562,2580.3,2580.1,35.0]
[1723767802651,3.313363,2580.6,2580.1,35.0]
[1723767802844,3.87566,2580.2,2580.1,35.0]
[1723767803160,0.26790712,2580.2,2580.1,35.0]
[1723767803562,3.87553,2580.3,2580.1,35.0]
[1723767804082,3.87524,2580.5,2580.1,35.0]
[1723767804385,0.26788569,2580.4,2580.1,35.0]
[1723767804600,0.06788569,2580.4,2580.3,7.75102]
[1723767804735,0.00316753,2581.2,2581.1,3.87431]
[1723767804938,0.00316753,2581.2,2581.1,4.39532617]
[1723767805168,0.00316753,2581.2,2581.1,39.45473656]
[1723767805434,0.00316753,2581.2,2581.1,38.93372039]
[1723767805742,0.00316753,2581.2,2581.1,38.87431]
[1723767806091,0.00316753,2581.2,2581.1,35.0]
[1723767807546,0.05530943,2581.2,2581.1,35.0]
[1723767807769,0.00316753,2581.2,2581.1,35.0]
[1723767809939,0.05537878,2581.2,2581.1,35.0]
[1723767810150,0.00316753,2581.2,2581.1,35.0]
[1723767810502,0.05537878,2581.2,2581.1,35.0]
[1723767810679,0.00316753,2581.2,2581.1,35.0]
[1723767810877,0.05535445,2581.2,2581.1,35.0]
[1723767811198,0.00316753,2581.2,2581.1,35.0]
[1723767811356,0.05536733,2581.2,2581.1,35.0]
[1723767811551,0.00316753,2581.2,2581.1,35.0]
[1723767811751,0.05538224,2581.2,2581.1,35.0]
[1723767814465,3.87503,2580.7,2580.1,3.87573]
[1723767814796,3.87503,2580.7,2580.0,2.02091631]
[1723767814797,0.05182263,2580.6,2580.0,2.02091631]
[1723767814965,0.05182263,2580.6,2580.1,35.0]
[1723767814966,3.8756,2580.3,2580.1,35.0]
[1723767815397,0.05209468,2580.2,2580.1,35.0]
[1723767815599,3.87566,2580.2,2580.1,35.0]
[1723767815780,3.92762162,2580.2,2580.1,35.0]
[1723767815982,0.05196162,2580.2,2580.1,35.0]
[1723767816183,3.92762162,2580.2,2580.1,35.0]
[1723767816798,1.09864622,2580.2,2579.3,6.76807977]
[1723767816951,1.09864622,2580.2,2579.3,3.87696]
[1723767816952,3.8762,2579.9,2579.3,3.87696]
[1723767817154,3.8762,2579.9,2579.1,7.75445]
[1723767817481,0.05135935,2579.8,2579.7,35.0]
[1723767817806,8.58424328,2579.8,2579.7,35.0]
[1723767817959,8.07016676,2579.8,2579.7,35.0]
[1723767818157,8.07016676,2579.8,2579.1,3.87729]
[1723767818387,7.80387935,2579.8,2579.1,3.87729]
[1723767818694,7.80387935,2579.8,2579.2,35.0]
[1723767818904,3.92761935,2579.8,2579.2,35.0]
[1723767819893,7.80399935,2579.8,2579.2,35.0]
[1723767820057,3.92761935,2579.8,2579.2,35.0]
[1723767820252,3.87681,2579.5,2579.2,35.0]
[1723767820652,0.0510629,2579.4,2579.2,35.0]
[1723767821691,3.87668,2579.6,2579.2,35.0]
[1723767821884,0.05105535,2579.3,2579.2,35.0]
[1723767822095,3.87668,2579.6,2579.2,35.0]
[1723767822255,0.05102936,2579.3,2579.2,35.0]
[1723767822452,3.87668,2579.6,2579.2,35.0]
[1723767822697,0.05098459,2579.3,2579.2,35.0]
[1723767822901,3.87668,2579.6,2579.2,35.0]
[1723767823498,3.92777068,2579.5,2579.2,35.0]
[1723767823998,3.87687,2579.4,2579.2,35.0]
[1723767824501,3.87726,2579.2,2578.5,3.87813]
[1723767824806,0.05077332,2579.1,2578.5,3.87813]
[1723767824974,0.05077332,2579.1,2578.6,35.0]
[1723767826670,3.92817332,2579.1,2578.6,35.0]
[1723767826984,3.87748,2579.0,2578.6,35.0]
[1723767827389,0.05032016,2578.9,2578.6,35.0]
[1723767827595,3.87747,2579.0,2578.6,35.0]
[1723767827898,0.05027181,2578.8,2578.6,35.0]
[1723767828200,0.0501615,2578.7,2578.6,35.0]
[1723767828410,3.87763,2578.9,2578.6,35.0]
[1723767828563,3.9280815,2578.7,2578.6,35.0]
[1723767828758,3.87825,2578.5,2577.9,3.87904]